bitfinex/quotes_BTCUSD_20250213
["timestamp","ask_amount","ask_price","bid_price","bid_amount"]
[1739462616168,0.21285134,95924.0,95923.0,0.0011064]
[1739462616374,0.20785134,95924.0,95923.0,0.0011064]
[1739462616783,0.21085134,95924.0,95923.0,0.0011064]
[1739462616997,0.20385134,95924.0,95923.0,0.0001064]
[1739462617208,0.04747834,95924.0,95923.0,0.0001064]
[1739462617426,0.05447834,95924.0,95923.0,0.0001064]
[1739462617786,0.04947834,95924.0,95923.0,0.0001064]
[1739462618456,0.20585134,95924.0,95923.0,0.0001064]
[1739462618612,0.1953796,95924.0,95923.0,0.0001064]
[1739462619241,0.1903796,95924.0,95923.0,0.0001064]
[1739462619650,0.1913796,95924.0,95923.0,0.0001064]
[1739462620037,0.20185134,95924.0,95923.0,0.0001064]
[1739462620243,0.20485134,95924.0,95923.0,0.0001064]
[1739462621903,0.18551335,95924.0,95923.0,0.0001064]
[1739462622646,0.17004161,95924.0,95923.0,0.0001064]
[1739462625781,0.01366861,95924.0,95923.0,0.0001064]
[1739462625984,0.17004161,95924.0,95923.0,0.0001064]
[1739462626185,0.01366861,95924.0,95923.0,0.0001064]
[1739462626392,0.01366861,95924.0,95923.0,0.1564814]
[1739462627003,0.01066861,95924.0,95923.0,0.1564814]
[1739462627407,0.01366861,95924.0,95923.0,0.1564814]
[1739462627810,0.01066861,95924.0,95923.0,0.1564814]
[1739462628208,0.01066861,95924.0,95923.0,0.1584814]
[1739462628656,0.00966861,95924.0,95923.0,0.0021064]
[1739462628860,0.00966861,95924.0,95923.0,0.1369064]
[1739462629063,0.00966861,95924.0,95923.0,0.2932814]
[1739462629473,0.00966861,95924.0,95923.0,0.1369064]
[1739462629615,0.16604161,95924.0,95923.0,0.1369064]
[1739462629813,0.16604161,95924.0,95923.0,0.1349064]
[1739462630016,0.16604161,95924.0,95923.0,0.1309064]
[1739462630244,0.01066861,95924.0,95923.0,0.1369064]
[1739462630451,0.16804161,95924.0,95923.0,0.1429064]
[1739462630827,0.18353255,95924.0,95923.0,0.1429064]
[1739462632400,0.18353255,95924.0,95923.0,0.0601064]
[1739462632803,0.18353255,95924.0,95923.0,0.0121064]
[1739462633187,0.02715955,95924.0,95923.0,0.0121064]
[1739462633386,0.18353255,95924.0,95923.0,0.0121064]
[1739462633683,0.16804161,95924.0,95923.0,0.0121064]
[1739462633871,0.01166861,95924.0,95923.0,0.0121064]
[1739462634305,0.16804161,95924.0,95923.0,0.0121064]
[1739462636393,0.15639,95914.0,95913.0,0.0492]
[1739462636604,0.15639,95914.0,95913.0,0.04933081]
[1739462636757,0.156386,95917.0,95913.0,0.04933081]
[1739462637158,0.02515503,95924.0,95913.0,0.04933081]
[1739462637358,0.156373,95924.0,95923.0,0.002]
[1739462638566,0.16605275,95924.0,95923.0,0.002]
[1739462638768,0.1561765,95917.0,95913.0,0.05433081]
[1739462638981,0.00967975,95924.0,95913.0,0.05733081]
[1739462639203,0.16605275,95924.0,95923.0,0.0001065]
[1739462639779,0.16605275,95924.0,95923.0,0.0031065]
[1739462640394,0.16605275,95924.0,95923.0,0.0001065]
[1739462640607,0.2685564,95924.0,95923.0,0.0011065]
[1739462640809,0.4974564,95924.0,95923.0,0.0011065]
[1739462641125,0.4974564,95924.0,95923.0,0.0031065]
[1739462641745,0.4974564,95924.0,95923.0,0.0021065]
[1739462642159,0.15639,95914.0,95913.0,0.00013081]
[1739462642807,0.25889365,95914.0,95913.0,0.00013081]
[1739462643242,0.2705734,95914.0,95913.0,0.00013081]
[1739462643648,0.4235734,95914.0,95913.0,0.00013081]
[1739462643896,0.4235734,95914.0,95904.0,0.00022365]
[1739462643897,0.306393,95912.0,95911.0,8.1e-07]
[1739462644096,0.48089665,95912.0,95911.0,8.1e-07]
[1739462644303,0.57679665,95912.0,95911.0,8.1e-07]
[1739462644503,0.01,95910.0,95904.0,0.00018446]
[1739462644678,0.306404,95905.0,95904.0,0.00018446]
[1739462644878,0.40890765,95905.0,95904.0,0.00018446]
[1739462645085,0.43190765,95905.0,95904.0,0.00018446]
[1739462645962,0.46403819,95905.0,95904.0,0.00018446]
[1739462646384,0.47003819,95905.0,95904.0,0.00018446]
[1739462646593,0.45703819,95905.0,95904.0,4.6e-07]
[1739462646951,0.46403819,95905.0,95904.0,4.6e-07]
[1739462647157,0.46403819,95905.0,95900.0,4e-05]
[1739462647158,0.306411,95901.0,95900.0,4.6e-07]
[1739462647427,0.156447,95879.0,95878.0,0.08096098]
[1739462647663,0.156447,95879.0,95878.0,0.08140152]
[1739462647902,0.156447,95879.0,95878.0,0.00044054]
[1739462648144,0.25895065,95879.0,95878.0,0.00044054]
[1739462648360,0.25895065,95879.0,95851.0,0.0001065]
[1739462648361,0.156489,95853.0,95851.0,0.0001065]
[1739462648776,0.306489,95853.0,95851.0,0.0001065]
[1739462649384,0.1461641,95862.0,95851.0,0.0001065]
[1739462649625,0.156489,95853.0,95851.0,0.0001065]
[1739462649760,0.02509113,95853.0,95852.0,0.0464065]
[1739462650132,0.02709113,95853.0,95852.0,0.0464065]
[1739462650499,0.02709113,95853.0,95852.0,0.2028975]
[1739462650667,0.02809113,95853.0,95852.0,0.30540115]
[1739462651082,0.02709113,95853.0,95852.0,0.30540115]
[1739462651284,0.156467,95867.0,95852.0,0.14891015]
[1739462651455,0.156467,95867.0,95857.0,0.156481]
[1739462651678,0.156464,95869.0,95859.0,0.156478]
[1739462651915,0.00967975,95878.0,95853.0,0.10250365]
[1739462652144,0.156477,95861.0,95853.0,0.10250365]
[1739462652379,0.156478,95860.0,95853.0,0.10250365]
[1739462652592,0.21965443,95863.0,95852.0,0.0484065]
[1739462652801,0.156489,95853.0,95852.0,0.0464065]
[1739462653237,0.156489,95853.0,95852.0,0.0001065]
[1739462653854,0.16608735,95853.0,95852.0,0.0001065]
[1739462654455,0.16608735,95853.0,95852.0,0.0021065]
[1739462655139,0.269591,95853.0,95852.0,0.0021065]
[1739462655642,0.268591,95853.0,95852.0,0.0021065]
[1739462655809,0.268591,95853.0,95852.0,0.0001065]
[1739462656009,0.269591,95853.0,95852.0,0.0021065]
[1739462656361,0.18242398,95853.0,95852.0,0.0001065]
[1739462656679,0.18342398,95853.0,95852.0,0.0001065]
[1739462656887,0.18242398,95853.0,95852.0,0.0001065]
[1739462657327,0.18442398,95853.0,95852.0,0.0001065]
[1739462657481,0.16908735,95853.0,95852.0,0.0001065]
[1739462657678,0.16708735,95853.0,95852.0,0.0001065]
[1739462657913,0.16608735,95853.0,95852.0,0.0001065]
[1739462658118,0.16908735,95853.0,95852.0,0.0001065]
[1739462658766,0.00959835,95853.0,95852.0,0.1565975]
[1739462659002,0.00959835,95853.0,95852.0,0.0001065]
[1739462659240,0.00959835,95853.0,95852.0,0.2379975]
[1739462659477,0.00959835,95853.0,95852.0,0.2389975]
[1739462659693,0.00959835,95853.0,95852.0,0.2379975]
[1739462659897,0.01059835,95853.0,95852.0,0.34050115]
[1739462660149,0.01159835,95853.0,95852.0,0.39200115]
[1739462660360,0.002,95853.0,95852.0,0.39200115]
[1739462660611,0.002,95853.0,95852.0,0.54200115]
[1739462661236,0.00959835,95869.0,95868.0,0.280265]
[1739462661675,0.00959835,95869.0,95868.0,0.1238]
[1739462661921,0.156454,95875.0,95868.0,0.1238]
[1739462662540,0.00043909,95879.0,95868.0,0.1238]
[1739462662785,0.001,95869.0,95868.0,0.280265]
[1739462663875,0.001,95869.0,95868.0,0.38476865]
[1739462664081,0.00043909,95879.0,95878.0,0.156448]
[1739462664291,0.00043909,95879.0,95878.0,0.33495165]
[1739462664557,0.00043909,95879.0,95878.0,0.53375165]
[1739462664937,0.00043909,95879.0,95878.0,0.56749716]
[1739462665139,0.00043909,95879.0,95878.0,0.57149716]
[1739462665718,0.00043909,95879.0,95878.0,0.588274]
[1739462666070,0.5,95900.0,95899.0,0.279414]
[1739462666222,0.5,95900.0,95899.0,0.3820497]
[1739462667837,0.5,95900.0,95899.0,0.3860497]
[1739462668510,0.5,95900.0,95899.0,0.3900497]
[1739462671331,0.5,95900.0,95899.0,0.5400497]
[1739462671483,0.5,95900.0,95899.0,0.5630497]
[1739462671869,0.5,95900.0,95899.0,0.58021901]
[1739462672298,0.5,95900.0,95899.0,0.58521901]
[1739462672526,0.42173089,95900.0,95899.0,0.59521901]
[1739462672720,0.37173089,95900.0,95899.0,0.59121901]
[1739462672928,0.30087589,95900.0,95899.0,0.59121901]
[1739462673129,0.30087589,95900.0,95899.0,1.13141901]
[1739462673351,0.30087589,95900.0,95899.0,1.13641901]
[1739462673553,0.30087589,95900.0,95899.0,1.13141901]
[1739462673757,0.30087589,95900.0,95899.0,1.12841901]
[1739462673954,0.06001073,95900.0,95899.0,1.12141901]
[1739462674131,0.06001073,95900.0,95899.0,1.13141901]
[1739462674369,0.06001073,95900.0,95899.0,1.13841901]
[1739462674551,0.06001073,95900.0,95899.0,1.14541901]
[1739462675166,0.06001073,95900.0,95899.0,1.13841901]
[1739462675575,0.06001073,95900.0,95899.0,1.13541901]
[1739462675770,0.06001073,95900.0,95899.0,1.0812497]
[1739462675998,0.06001073,95900.0,95899.0,0.3569497]
[1739462676196,0.06001073,95900.0,95899.0,0.3429497]
[1739462676403,0.06001073,95900.0,95899.0,0.3365357]
[1739462676556,0.06001073,95900.0,95899.0,0.01413205]
[1739462676557,0.21642273,95900.0,95899.0,0.01413205]
[1739462676750,0.21642273,95900.0,95899.0,0.00013205]
[1739462676965,0.21642273,95900.0,95899.0,0.00713205]
[1739462677170,0.21642273,95900.0,95899.0,0.01413205]
[1739462677392,0.22601146,95900.0,95899.0,0.00713205]
[1739462677827,0.22601146,95900.0,95899.0,0.00023865]
[1739462678058,0.22701146,95900.0,95899.0,0.00023865]
[1739462678211,0.22723533,95900.0,95899.0,0.00023865]
[1739462678616,0.22623533,95900.0,95899.0,0.00023865]
[1739462678818,0.2166466,95900.0,95899.0,0.00023865]
[1739462679727,0.31915025,95900.0,95899.0,0.00023865]
[1739462679911,0.31915025,95900.0,95899.0,6.5e-07]
[1739462680290,0.59185025,95900.0,95899.0,6.5e-07]
[1739462680692,0.156452,95876.0,95875.0,0.08323666]
[1739462681169,0.15647,95865.0,95864.0,0.08323666]
[1739462681382,0.00959436,95876.0,95864.0,0.08323666]
[1739462681683,0.00959436,95876.0,95852.0,0.09346603]
[1739462681831,0.156467,95867.0,95857.0,0.156482]
[1739462682037,0.156468,95866.0,95857.0,0.156482]
[1739462682230,0.21819836,95876.0,95866.0,0.156468]
[1739462682459,0.00011435,95876.0,95853.0,0.10250365]
[1739462682669,0.00011435,95876.0,95871.0,0.156459]
[1739462682868,0.00011435,95876.0,95867.0,0.156465]
[1739462682869,0.15656735,95876.0,95867.0,0.156465]
[1739462683159,0.156455,95874.0,95866.0,0.156468]
[1739462683346,0.156455,95874.0,95857.0,0.002]
[1739462683552,0.00011435,95876.0,95858.0,0.10250365]
[1739462683760,0.00011435,95876.0,95859.0,0.00104306]
[1739462683966,0.00011435,95876.0,95871.0,0.002]
[1739462684169,0.156453,95875.0,95871.0,0.002]
[1739462684373,0.00011435,95876.0,95860.0,0.10250365]
[1739462684576,0.00011435,95876.0,95869.0,0.156461]
[1739462685218,0.00011435,95876.0,95869.0,0.156462]
[1739462685426,0.00011435,95876.0,95860.0,0.10250365]
[1739462685628,0.156456,95874.0,95867.0,0.156466]
[1739462685768,0.156456,95874.0,95868.0,0.10250365]
[1739462686221,0.00011435,95876.0,95871.0,0.001]
[1739462686421,0.00011435,95876.0,95868.0,0.10250365]
[1739462686648,0.156459,95872.0,95868.0,0.10250365]
[1739462687197,0.00011435,95876.0,95868.0,0.10250365]
[1739462687198,0.156463,95869.0,95868.0,0.10250365]
[1739462687406,0.00011435,95876.0,95868.0,0.10450365]
[1739462687619,0.20871835,95876.0,95853.0,0.15]
[1739462687820,0.156466,95867.0,95855.0,0.15]
[1739462688190,0.156464,95869.0,95860.0,0.15]
[1739462688374,0.00011435,95876.0,95865.0,0.156469]
[1739462688586,0.15646,95871.0,95862.0,0.156474]
[1739462688789,0.156462,95870.0,95862.0,0.156474]
[1739462688932,0.00011435,95876.0,95861.0,0.10250365]
[1739462689133,0.156463,95869.0,95868.0,0.003]
[1739462689334,0.156463,95869.0,95868.0,0.001]
[1739462690505,0.156461,95871.0,95868.0,0.004]
[1739462690640,0.20871735,95876.0,95868.0,0.004]
[1739462690844,0.16608858,95869.0,95868.0,0.004]
[1739462691245,0.00962558,95869.0,95868.0,0.003]
[1739462692116,0.16608858,95869.0,95861.0,0.25897965]
[1739462692265,0.16608858,95869.0,95868.0,0.004]
[1739462692468,0.16608858,95869.0,95868.0,0.007]
[1739462693054,0.16608858,95869.0,95868.0,0.003]
[1739462693281,0.16608858,95869.0,95862.0,0.0001066]
[1739462693485,0.16608858,95869.0,95868.0,0.003]
[1739462693688,0.156463,95869.0,95868.0,0.003]
[1739462695172,0.157463,95869.0,95868.0,0.003]
[1739462695743,0.156472,95864.0,95862.0,0.0001066]
[1739462695932,0.208623,95867.0,95862.0,0.0001066]
[1739462696157,0.01539769,95871.0,95866.0,0.156467]
[1739462696345,0.01924302,95869.0,95866.0,0.156468]
[1739462696549,0.01924302,95869.0,95862.0,0.0001066]
[1739462696767,0.01924302,95869.0,95863.0,0.156472]
[1739462697195,0.01924302,95869.0,95862.0,0.0021066]
[1739462697384,0.156473,95863.0,95862.0,0.0001066]
[1739462697914,0.16609494,95863.0,95862.0,0.0001066]
[1739462698393,0.16609494,95863.0,95862.0,0.0021066]
[1739462698752,0.16609494,95863.0,95862.0,0.0051066]
[1739462698961,0.16609494,95863.0,95862.0,0.0001066]
[1739462700013,0.16609494,95863.0,95862.0,0.0031066]
[1739462700795,0.16609494,95863.0,95862.0,0.0061066]
[1739462701253,0.16609494,95863.0,95862.0,0.0031066]
[1739462701462,0.18534223,95863.0,95862.0,0.0031066]
[1739462701682,0.18534223,95863.0,95862.0,0.0011066]
[1739462702124,0.18534223,95863.0,95862.0,0.0001066]
[1739462702610,0.16709494,95863.0,95862.0,0.0001066]
[1739462704365,0.16609494,95863.0,95862.0,0.0001066]
[1739462704610,0.16709494,95863.0,95862.0,0.0001066]
[1739462704990,0.16609494,95863.0,95862.0,0.0001066]
[1739462705190,0.18149293,95863.0,95862.0,0.0001066]
[1739462705428,0.18249293,95863.0,95862.0,0.0001066]
[1739462706206,0.02601993,95863.0,95862.0,0.1565806]
[1739462706421,0.02601993,95863.0,95862.0,0.41946765]
[1739462706638,0.001,95863.0,95862.0,0.52306765]
[1739462706874,0.00962194,95874.0,95873.0,0.387056]
[1739462707024,0.00962194,95874.0,95873.0,0.48955965]
[1739462707653,0.00962194,95874.0,95873.0,0.51255965]
[1739462707856,0.00962194,95893.0,95875.0,0.306453]
[1739462708051,0.00962194,95893.0,95875.0,0.25250365]
[1739462708254,0.156432,95889.0,95875.0,0.25250365]
[1739462708873,0.208571,95891.0,95875.0,0.25250365]
[1739462709271,0.156428,95891.0,95875.0,0.25250365]
[1739462709428,0.156434,95887.0,95875.0,0.25850365]
[1739462709634,0.208572,95890.0,95875.0,0.25850365]
[1739462709837,0.208572,95890.0,95875.0,0.25250365]
[1739462710057,0.15656635,95876.0,95875.0,0.10950365]
[1739462710268,0.15656635,95876.0,95875.0,0.007]
[1739462711091,0.00011435,95876.0,95875.0,0.014]
[1739462711515,0.00977258,95876.0,95875.0,0.014]
[1739462711712,0.00977258,95876.0,95875.0,0.007]
[1739462712330,0.00977258,95876.0,95875.0,0.156453]
[1739462712557,0.00977258,95876.0,95873.0,0.156455]
[1739462712733,0.00977258,95876.0,95875.0,0.013]
[1739462713575,0.156452,95876.0,95875.0,0.013]
[1739462713967,0.156452,95876.0,95875.0,0.007]
[1739462714810,0.208599,95878.0,95852.0,0.0001065]
[1739462714811,0.156489,95853.0,95852.0,0.0001065]
[1739462715013,0.156489,95853.0,95852.0,0.00054559]
[1739462716195,0.156489,95853.0,95852.0,0.00454559]
[1739462716395,0.156489,95853.0,95852.0,0.00054559]
[1739462716626,0.156489,95853.0,95852.0,0.00454559]
[1739462716828,0.0465,95869.0,95852.0,0.00854559]
[1739462716829,0.208633,95862.0,95852.0,0.00854559]
[1739462717000,0.0465,95869.0,95852.0,0.00854559]
[1739462717201,0.156489,95853.0,95852.0,0.00854559]
[1739462717998,0.156489,95853.0,95852.0,0.00454559]
[1739462718413,0.156489,95853.0,95852.0,0.00654559]
[1739462718825,0.156489,95853.0,95852.0,0.00454559]
[1739462719262,0.156489,95853.0,95852.0,0.00954559]
[1739462719620,0.156489,95853.0,95852.0,0.00054559]
[1739462719824,0.158489,95853.0,95852.0,0.00054559]
[1739462720554,0.161489,95853.0,95852.0,0.00054559]
[1739462721197,0.159489,95853.0,95852.0,0.00054559]
[1739462721439,0.160489,95853.0,95852.0,0.00054559]
[1739462721591,0.157489,95853.0,95852.0,0.00054559]
[1739462721796,0.156489,95853.0,95852.0,0.00054559]
[1739462722161,0.159489,95853.0,95852.0,0.00054559]
[1739462722376,0.160489,95853.0,95852.0,0.00054559]
[1739462722536,0.163489,95853.0,95852.0,0.00054559]
[1739462722936,0.156489,95853.0,95852.0,0.00054559]
[1739462723306,0.159489,95853.0,95852.0,0.00054559]
[1739462724235,0.160489,95853.0,95852.0,0.00054559]
[1739462724631,0.159489,95853.0,95852.0,0.00054559]
[1739462724859,0.162489,95853.0,95852.0,0.00054559]
[1739462725067,0.25999265,95853.0,95852.0,0.00054559]
[1739462725476,0.27062778,95853.0,95852.0,0.00054559]
[1739462725676,0.27162778,95853.0,95852.0,0.00054559]
[1739462725881,0.27462778,95853.0,95852.0,0.00054559]
[1739462726313,0.26962778,95853.0,95852.0,0.00054559]
[1739462726628,0.27262778,95853.0,95852.0,0.00054559]
[1739462727173,0.42262778,95853.0,95852.0,0.00054559]
[1739462727806,0.42162778,95853.0,95852.0,0.00054559]
[1739462728007,0.41962778,95853.0,95852.0,0.00054559]
[1739462728419,0.42162778,95853.0,95852.0,0.00054559]
[1739462728623,0.46632778,95853.0,95852.0,0.00054559]
[1739462728825,0.49032778,95853.0,95852.0,0.00154559]
[1739462729239,0.49332778,95853.0,95852.0,0.00179837]
[1739462729440,0.023,95852.0,95848.0,1.0]
[1739462729649,0.28199465,95852.0,95851.0,0.00022085]
[1739462730713,0.156496,95849.0,95848.0,1.0]
[1739462730916,0.40899965,95849.0,95848.0,1.0]
[1739462731324,0.43199965,95849.0,95848.0,1.0]
[1739462731959,0.45268875,95849.0,95848.0,1.002]
[1739462732195,0.49696152,95849.0,95848.0,0.97849]
[1739462732409,0.48996152,95849.0,95848.0,0.97749]
[1739462732612,0.51750303,95849.0,95848.0,0.97749]
[1739462732824,0.51150303,95849.0,95848.0,0.97649]
[1739462733022,0.51750303,95849.0,95848.0,0.97749]
[1739462733236,0.49696152,95849.0,95848.0,0.83864537]
[1739462733649,0.48156809,95849.0,95848.0,0.39378626]
[1739462733852,0.49156809,95849.0,95848.0,0.01464864]
[1739462734065,0.49156809,95849.0,95848.0,6.4e-07]
[1739462734272,0.58446809,95849.0,95848.0,6.4e-07]
[1739462734474,0.95977122,95849.0,95848.0,6.4e-07]
[1739462734677,0.31651,95840.0,95839.0,0.0001065]
[1739462734894,0.44201365,95840.0,95839.0,0.0001065]
[1739462735100,0.50401989,95840.0,95839.0,0.0001065]
[1739462735949,0.55398936,95840.0,95839.0,0.0001065]
[1739462736156,0.55698936,95840.0,95839.0,0.0001065]
[1739462736369,0.58198691,95840.0,95839.0,0.0001065]
[1739462736577,0.49908378,95840.0,95839.0,0.0001065]
[1739462737446,0.43075189,95840.0,95839.0,0.0001065]
[1739462737694,0.43475189,95840.0,95839.0,0.0001065]
[1739462737947,0.42575189,95840.0,95839.0,0.0001065]
[1739462738199,0.42875189,95840.0,95839.0,0.0001065]
[1739462738452,0.43075189,95840.0,95839.0,0.0001065]
[1739462738688,0.42775189,95840.0,95839.0,0.0001065]
[1739462739166,0.43075189,95840.0,95839.0,0.0001065]
[1739462739897,0.42111676,95840.0,95839.0,0.0001065]
[1739462741841,0.41811676,95840.0,95839.0,0.0001065]
[1739462742083,0.42311676,95840.0,95839.0,0.0001065]
[1739462742580,0.42911676,95840.0,95839.0,0.0001065]
[1739462743087,0.42211676,95840.0,95839.0,0.0001065]
[1739462743790,0.41611676,95840.0,95839.0,0.0001065]
[1739462744039,0.42111676,95840.0,95839.0,0.0001065]
[1739462744516,0.42711676,95840.0,95839.0,0.0001065]
[1739462744767,0.42211676,95840.0,95839.0,0.0001065]
[1739462745003,0.41611676,95840.0,95839.0,0.0001065]
[1739462745203,0.42711676,95840.0,95839.0,0.0001065]
[1739462745438,0.45011676,95840.0,95839.0,0.0001065]
[1739462745644,0.46739606,95840.0,95839.0,0.0001065]
[1739462745853,0.54659606,95840.0,95839.0,0.0001065]
[1739462746055,0.55259606,95840.0,95839.0,0.0001065]
[1739462746259,0.52931676,95840.0,95839.0,0.0001065]
[1739462746677,0.52931676,95840.0,95817.0,0.0001066]
[1739462746678,0.26,95832.0,95831.0,5e-07]
[1739462746890,0.38550365,95832.0,95831.0,0.00013266]
[1739462747040,0.39258027,95832.0,95831.0,0.00013266]
[1739462747460,0.40222854,95832.0,95831.0,0.00013266]
[1739462748354,0.55875154,95832.0,95831.0,0.00013266]
[1739462748562,0.57275154,95832.0,95831.0,0.00013266]
[1739462748970,0.43975154,95832.0,95831.0,0.00013266]
[1739462749357,0.43275154,95832.0,95831.0,0.00013266]
[1739462749502,0.43975154,95832.0,95831.0,0.00013266]
[1739462749704,0.18724789,95832.0,95831.0,0.00013266]
[1739462749948,0.17059962,95832.0,95831.0,0.00013266]
[1739462750153,0.17759962,95832.0,95831.0,0.00013266]
[1739462750553,0.17059962,95832.0,95831.0,0.00013266]
[1739462750817,0.17559962,95832.0,95831.0,0.00013266]
[1739462751049,0.28910327,95832.0,95831.0,0.00013266]
[1739462751420,0.29310327,95832.0,95831.0,0.00013266]
[1739462752180,0.27010327,95832.0,95831.0,0.00013266]
[1739462752603,0.27010327,95832.0,95831.0,0.00023926]
[1739462752850,0.27210327,95832.0,95831.0,0.00023926]
[1739462753290,0.27910327,95832.0,95831.0,0.00023926]
[1739462753507,0.27210327,95832.0,95831.0,0.00023926]
[1739462753920,0.01707662,95832.0,95831.0,0.00023926]
[1739462754123,0.01707662,95832.0,95831.0,0.15676426]
[1739462754321,0.01707662,95832.0,95831.0,0.38776426]
[1739462754550,0.004,95832.0,95831.0,0.49026791]
[1739462754741,0.004,95832.0,95831.0,0.53816791]
[1739462754915,0.009,95832.0,95831.0,0.53816791]
[1739462755385,0.004,95832.0,95831.0,0.53816791]
[1739462755663,0.005,95832.0,95831.0,0.53816791]
[1739462755869,0.001,95832.0,95831.0,0.53816791]
[1739462756183,0.00022387,95840.0,95831.0,0.53816791]
[1739462756184,0.00022387,95840.0,95839.0,0.156512]
[1739462756592,0.00022387,95840.0,95837.0,0.156514]
[1739462756806,0.00022387,95840.0,95836.0,0.208688]
[1739462757010,0.00022387,95840.0,95836.0,0.10250365]
[1739462757259,0.00701846,95839.0,95836.0,0.10250365]
[1739462757836,0.00701846,95839.0,95832.0,0.15]
[1739462758040,0.00701846,95839.0,95834.0,0.15]
[1739462758220,0.00122387,95840.0,95838.0,0.156513]
[1739462758633,0.00222387,95840.0,95838.0,0.156513]
[1739462759043,0.00022387,95840.0,95839.0,0.156512]
[1739462759464,0.00122387,95840.0,95839.0,0.156512]
[1739462759670,0.00824233,95840.0,95839.0,0.156512]
[1739462759890,0.00022387,95840.0,95839.0,0.156512]
[1739462760166,0.00022387,95840.0,95831.0,0.12913926]
[1739462760167,0.00824233,95840.0,95831.0,0.08123926]
[1739462760422,0.00122387,95840.0,95839.0,0.156512]
[1739462760813,0.00222387,95840.0,95839.0,0.306512]
[1739462761021,0.00122387,95840.0,95839.0,0.306512]
[1739462761442,0.00022387,95840.0,95839.0,0.306512]
[1739462761667,0.00724233,95840.0,95839.0,0.306512]
[1739462761896,0.00122387,95840.0,95839.0,0.40901565]
[1739462762120,0.00122387,95840.0,95839.0,0.53971565]
[1739462762334,0.00022387,95840.0,95839.0,0.53971565]
[1739462762762,0.00222387,95840.0,95839.0,0.53971565]
[1739462763017,0.00122387,95840.0,95839.0,0.53971565]
[1739462763193,0.00022387,95840.0,95839.0,0.53971565]
[1739462763458,0.00222387,95840.0,95839.0,0.53971565]
[1739462763692,0.00122387,95840.0,95839.0,0.53971565]
[1739462763938,0.00222387,95840.0,95839.0,0.53971565]
[1739462764610,0.00122387,95840.0,95839.0,0.53971565]
[1739462765023,0.00222387,95840.0,95839.0,0.53971565]
[1739462765231,0.00222387,95840.0,95839.0,0.38320365]
[1739462765446,0.00122387,95840.0,95839.0,0.53971565]
[1739462765659,0.00022387,95840.0,95839.0,0.53971565]
[1739462765863,0.00122387,95840.0,95839.0,0.53971565]
[1739462766281,0.00022387,95840.0,95839.0,0.53971565]
[1739462766489,0.00022387,95840.0,95839.0,0.54571565]
[1739462766490,0.00122387,95840.0,95839.0,0.54571565]
[1739462766701,0.15773387,95840.0,95839.0,0.2807]
[1739462766909,0.00122387,95840.0,95839.0,0.2325]
[1739462767120,0.16591251,95840.0,95839.0,0.156]
[1739462767330,0.208685,95838.0,95825.0,0.0787]
[1739462767510,0.156523,95832.0,95825.0,0.0787]
[1739462767962,0.17332742,95832.0,95817.0,0.0001066]
[1739462768988,0.17332742,95832.0,95831.0,0.00123926]
[1739462769195,0.17332742,95832.0,95831.0,0.00323926]
[1739462769491,0.01680442,95832.0,95831.0,0.00323926]
[1739462769704,0.01680442,95832.0,95831.0,0.53596791]
[1739462769930,0.01680442,95832.0,95831.0,0.54755193]
[1739462770135,0.00022387,95840.0,95839.0,0.306512]
[1739462770353,0.00022387,95840.0,95839.0,0.51101565]
[1739462770615,0.00022387,95840.0,95839.0,0.52101565]
[1739462770824,0.01081848,95895.0,95864.0,0.01]
[1739462771035,0.00022387,95895.0,95891.0,0.156427]
[1739462771263,0.00022387,95895.0,95892.0,0.10250365]
[1739462771478,0.00639567,95894.0,95892.0,0.10250365]
[1739462771706,0.00639567,95894.0,95892.0,0.25892865]
[1739462771920,0.00639567,95894.0,95893.0,0.15]
[1739462772129,0.0068362,95894.0,95893.0,0.25250365]
[1739462772354,0.00044053,95894.0,95893.0,0.25250365]
[1739462773479,0.00044053,95894.0,95893.0,0.33230365]
[1739462773694,0.00044053,95894.0,95893.0,0.36030365]
[1739462773902,0.00044053,95894.0,95893.0,0.33730365]
[1739462775406,0.00044053,95894.0,95893.0,0.25750365]
[1739462775873,0.00044053,95894.0,95893.0,0.26150365]
[1739462776289,0.00700401,95894.0,95893.0,0.26150365]
[1739462776688,0.00700401,95894.0,95893.0,0.009]
[1739462777198,0.00700401,95894.0,95893.0,0.11150365]
[1739462777409,0.00700401,95894.0,95893.0,0.25750365]
[1739462777632,0.00700401,95894.0,95893.0,0.41392765]
[1739462777838,0.00044053,95894.0,95893.0,0.41392765]
[1739462778089,0.00044053,95894.0,95893.0,0.40892765]
[1739462778273,0.00044053,95894.0,95893.0,0.41092765]
[1739462778437,0.00066419,95894.0,95893.0,0.41092765]
[1739462779029,0.00166419,95894.0,95893.0,0.41392765]
[1739462779239,0.00166419,95894.0,95893.0,0.56232765]
[1739462779439,0.00166419,95894.0,95893.0,0.56732765]
[1739462779648,0.00166419,95894.0,95893.0,0.57732765]
[1739462779878,0.00022387,95899.0,95898.0,0.306416]
[1739462780053,0.00035593,95899.0,95898.0,0.43191965]
[1739462780922,0.00035593,95899.0,95898.0,0.44191965]
[1739462781056,0.00035593,95899.0,95898.0,0.45191965]
[1739462781256,0.00035593,95899.0,95898.0,0.47260541]
[1739462781854,0.39535979,95900.0,95899.0,0.349414]
[1739462782063,0.00022387,95964.0,95919.0,0.01]
[1739462782274,0.00035572,95933.0,95932.0,0.43186365]
[1739462782691,0.00035572,95933.0,95932.0,0.40886365]
[1739462783337,0.00135572,95933.0,95932.0,0.40886365]
[1739462783722,0.00035572,95933.0,95932.0,0.40886365]
[1739462784544,0.00135572,95933.0,95932.0,0.41586365]
[1739462785302,0.00135572,95933.0,95932.0,0.25950365]
[1739462785765,0.00235572,95933.0,95932.0,0.11650365]
[1739462785967,0.00723009,95933.0,95932.0,0.10250365]
[1739462786185,0.00723009,95933.0,95932.0,0.11650365]
[1739462786394,0.00823009,95933.0,95932.0,0.11650365]
[1739462786618,0.00823009,95933.0,95932.0,0.26650365]
[1739462787055,0.00723009,95933.0,95932.0,0.25950365]
[1739462787791,0.00035572,95933.0,95932.0,0.25250365]
[1739462788000,0.00035572,95933.0,95932.0,0.25850365]
[1739462788207,0.00723009,95933.0,95932.0,0.25850365]
[1739462788436,0.00035572,95933.0,95932.0,0.25750365]
[1739462788641,0.00723009,95933.0,95932.0,0.25250365]
[1739462788845,0.00823009,95933.0,95932.0,0.25950365]
[1739462789096,0.00235572,95933.0,95932.0,0.26650365]
[1739462789497,0.00923009,95933.0,95932.0,0.26650365]
[1739462789675,0.00235572,95933.0,95932.0,0.26650365]
[1739462789883,0.00923009,95933.0,95932.0,0.26650365]
[1739462790085,0.15871472,95933.0,95932.0,0.164]
[1739462790388,0.16558909,95933.0,95932.0,0.014]
[1739462791070,0.16458909,95933.0,95932.0,0.007]
[1739462791273,0.16758909,95933.0,95932.0,0.007]